bitfinex/quotes_BTCUSD_20250730
["timestamp","ask_amount","ask_price","bid_price","bid_amount"]
[1753898691196,0.00014586,117810.0,117800.0,0.21819928]
[1753898691450,0.00014586,117810.0,117800.0,0.24849928]
[1753898691650,0.00014586,117810.0,117800.0,0.27721522]
[1753898691899,0.00014586,117810.0,117800.0,0.30202677]
[1753898692124,0.00314586,117810.0,117800.0,0.31900396]
[1753898692352,0.00314586,117810.0,117800.0,0.40348126]
[1753898692590,0.00314586,117810.0,117800.0,0.39499281]
[1753898693472,0.00314586,117810.0,117800.0,0.40348134]
[1753898693715,0.00314586,117810.0,117800.0,0.41412979]
[1753898693957,0.00314586,117810.0,117800.0,1.26819191]
[1753898694189,0.00314586,117810.0,117800.0,0.92819191]
[1753898694674,0.00318586,117810.0,117800.0,0.92819191]
[1753898694920,0.00018586,117810.0,117800.0,1.78225403]
[1753898695144,0.00018586,117810.0,117800.0,1.27019191]
[1753898695614,0.00018586,117810.0,117800.0,0.90380979]
[1753898695849,0.00018586,117810.0,117800.0,1.41787191]
[1753898696788,0.0002,117840.0,117830.0,0.19519567]
[1753898697014,0.0002,117840.0,117830.0,1.01660138]
[1753898697440,0.0002,117840.0,117830.0,1.06612138]
[1753898698120,0.0012,117840.0,117830.0,1.06612138]
[1753898698341,0.0012,117840.0,117830.0,1.05763509]
[1753898698559,0.0012,117840.0,117830.0,1.04914872]
[1753898698782,0.00289,117840.0,117830.0,0.30266336]
[1753898698993,0.00289,117840.0,117830.0,0.2789673]
[1753898699222,0.00289,117840.0,117830.0,0.0854773]
[1753898699437,0.00289,117840.0,117830.0,0.234679]
[1753898699663,0.00289,117840.0,117830.0,0.2325573]
[1753898700112,0.0012,117840.0,117830.0,0.86259942]
[1753898700339,0.00124,117840.0,117830.0,0.2014573]
[1753898700577,0.00293,117840.0,117830.0,0.2788073]
[1753898700792,0.00293,117840.0,117830.0,0.2326373]
[1753898701473,0.00124,117840.0,117830.0,0.86027942]
[1753898701697,0.00124,117840.0,117830.0,0.3462173]
[1753898701932,0.00124,117840.0,117830.0,0.86027942]
[1753898703774,0.00124,117840.0,117830.0,0.3462173]
[1753898703999,0.00293,117840.0,117830.0,0.3461373]
[1753898704220,0.00293,117840.0,117830.0,0.2842373]
[1753898704471,0.01076946,117840.0,117830.0,0.2842373]
[1753898704691,0.00124,117840.0,117830.0,0.86179942]
[1753898704942,0.00124,117840.0,117830.0,1.38850886]
[1753898705402,0.00124,117840.0,117830.0,1.40548181]
[1753898705620,0.00124,117840.0,117830.0,1.40232181]
[1753898705837,0.00024,117840.0,117830.0,1.39383552]
[1753898706049,0.00024,117840.0,117830.0,1.19879942]
[1753898706284,0.00024,117840.0,117830.0,1.38550857]
[1753898706498,0.00024,117840.0,117830.0,1.39399486]
[1753898707138,0.00024,117840.0,117830.0,1.38550864]
[1753898707356,0.00024,117840.0,117830.0,1.36953548]
[1753898707570,0.00024,117840.0,117830.0,1.39499509]
[1753898707781,0.00024,117840.0,117830.0,1.40248138]
[1753898708247,0.00024,117840.0,117830.0,1.40448138]
[1753898708465,0.00024,117840.0,117830.0,1.40548138]
[1753898708676,0.00024,117840.0,117830.0,1.42861038]
[1753898708898,0.00024,117840.0,117830.0,1.43077038]
[1753898709558,0.00024,117840.0,117830.0,0.90822197]
[1753898709775,0.00024,117840.0,117830.0,0.2257863]
[1753898710000,0.00024,117840.0,117830.0,0.2860773]
[1753898710255,0.00024,117840.0,117830.0,0.46430001]
[1753898710474,0.00024,117840.0,117830.0,0.97836213]
[1753898710685,0.00024,117840.0,117830.0,1.01684864]
[1753898711184,0.00024,117840.0,117830.0,1.02533515]
[1753898711407,0.00024,117840.0,117830.0,1.02533522]
[1753898711631,0.00024,117840.0,117830.0,0.5331205]
[1753898711846,0.00024,117840.0,117830.0,0.49425901]
[1753898712087,0.00024,117840.0,117830.0,0.48577236]
[1753898712300,0.00193,117840.0,117830.0,0.3128063]
[1753898712523,0.00024,117840.0,117830.0,0.46425909]
[1753898712756,0.00024,117840.0,117830.0,0.47274574]
[1753898712976,0.00024,117840.0,117830.0,1.00378066]
[1753898713202,0.00024,117840.0,117830.0,0.55061854]
[1753898713465,0.00024,117840.0,117830.0,1.05419437]
[1753898713684,0.00024,117840.0,117830.0,0.2830363]
[1753898713904,0.00193,117840.0,117830.0,0.2830363]
[1753898714145,0.00024,117840.0,117830.0,0.47074567]
[1753898714374,0.00024,117840.0,117830.0,0.2840363]
[1753898714594,0.00024,117840.0,117830.0,0.50074545]
[1753898714822,0.00024,117840.0,117830.0,1.06268023]
[1753898715038,0.00024,117840.0,117830.0,1.40268023]
[1753898715475,0.00024,117840.0,117830.0,1.25576023]
[1753898715697,0.00024,117840.0,117830.0,1.40236023]
[1753898715917,0.00024,117840.0,117830.0,1.42736023]
[1753898716145,0.00024,117840.0,117830.0,1.45020023]
[1753898716380,0.00024,117840.0,117830.0,1.98171137]
[1753898716633,0.02286406,117870.0,117860.0,0.5659459]
[1753898716855,0.02300984,117870.0,117860.0,0.8273032]
[1753898717077,0.02300984,117870.0,117860.0,1.39088532]
[1753898717564,0.02300984,117870.0,117860.0,0.8768232]
[1753898717777,0.02302595,117870.0,117860.0,1.39088532]
[1753898718663,0.00802595,117870.0,117860.0,1.41588532]
[1753898718877,0.00802595,117870.0,117860.0,1.42004532]
[1753898719331,0.00014578,117870.0,117860.0,1.42004532]
[1753898719560,0.00802595,117870.0,117860.0,0.8809832]
[1753898720249,0.00802595,117870.0,117860.0,0.52401472]
[1753898720482,0.00802595,117870.0,117860.0,0.30246015]
[1753898720700,0.00802595,117870.0,117860.0,0.2332773]
[1753898720920,0.03912595,117870.0,117860.0,0.2312773]
[1753898721385,0.03912595,117870.0,117860.0,0.2322773]
[1753898721836,0.00804472,117870.0,117860.0,0.2352773]
[1753898722055,0.00804472,117870.0,117860.0,0.2342773]
[1753898722275,0.00804472,117870.0,117860.0,0.99000532]
[1753898722495,0.00804472,117870.0,117860.0,1.05150532]
[1753898722732,0.00904472,117870.0,117860.0,1.39150532]
[1753898723906,0.00904472,117870.0,117860.0,1.41700132]
[1753898724569,0.00804472,117870.0,117860.0,1.41700132]
[1753898724772,0.00014578,117870.0,117860.0,1.41700132]
[1753898725959,0.00804472,117870.0,117860.0,1.41700132]
[1753898727698,0.00804935,117870.0,117860.0,1.41700132]
[1753898727871,0.00804935,117870.0,117860.0,1.27020132]
[1753898728079,0.00804935,117870.0,117860.0,0.0844773]
[1753898728287,0.07973719,117870.0,117860.0,0.0844773]
[1753898728512,0.67382479,117870.0,117860.0,0.2305973]
[1753898728688,1.03079154,117870.0,117860.0,0.0844773]
[1753898729042,0.0624,117860.0,117840.0,0.20396]
[1753898729249,0.07623141,117860.0,117850.0,0.2305573]
[1753898729458,0.07623141,117860.0,117840.0,0.20396]
[1753898729459,0.07894902,117850.0,117840.0,0.20396]
[1753898729662,0.08685259,117850.0,117840.0,0.2884373]
[1753898730088,0.00790357,117850.0,117840.0,0.4343973]
[1753898730295,0.03920357,117850.0,117840.0,0.4343973]
[1753898730496,0.07036357,117850.0,117840.0,0.2884373]
[1753898730711,0.07036357,117850.0,117840.0,0.4343973]
[1753898731138,0.07030357,117850.0,117840.0,0.4343973]
[1753898731606,0.07030357,117850.0,117840.0,0.2884373]
[1753898731819,0.00890357,117850.0,117840.0,0.4343573]
[1753898732271,0.04326357,117850.0,117840.0,0.4343573]
[1753898732491,0.07337219,117850.0,117840.0,0.4343573]
[1753898732971,0.003,117850.0,117840.0,0.4343573]
[1753898733208,0.003,117850.0,117840.0,0.4811573]
[1753898733649,0.01091225,117850.0,117840.0,0.4811573]
[1753898733864,0.01091225,117850.0,117840.0,0.67103075]
[1753898734097,0.24313507,117880.0,117840.0,0.6795164]
[1753898734331,0.5199962,117880.0,117850.0,0.13339864]
[1753898734533,0.5199962,117880.0,117860.0,0.14552]
[1753898734744,0.01744902,117870.0,117860.0,0.2299973]
[1753898734958,0.01744902,117880.0,117860.0,0.2299973]
[1753898735182,0.02338743,117880.0,117870.0,0.0844773]
[1753898735404,0.00593841,117880.0,117870.0,0.0844773]
[1753898735651,0.006,117880.0,117870.0,0.08659828]
[1753898735867,0.01744902,117890.0,117870.0,0.08659828]
[1753898736076,0.02338921,117890.0,117880.0,0.14536]
[1753898736290,0.01744902,117890.0,117880.0,0.2298373]
[1753898736985,0.01744863,117890.0,117880.0,0.2298373]
[1753898737198,0.4039,117910.0,117880.0,0.2766373]
[1753898737411,0.00248573,117890.0,117880.0,0.2766373]
[1753898737625,0.00248573,117890.0,117880.0,0.2798173]
[1753898738060,0.00248573,117890.0,117880.0,0.2766373]
[1753898738285,0.00048573,117890.0,117880.0,0.2766373]
[1753898738502,0.00248573,117890.0,117880.0,0.2298373]
[1753898739411,0.00248573,117890.0,117880.0,0.0844773]
[1753898739680,0.00248573,117890.0,117880.0,0.2317181]
[1753898739903,0.00248573,117890.0,117880.0,0.2295973]
[1753898740367,0.51654785,117890.0,117880.0,0.2295973]
[1753898740590,0.64925166,117890.0,117880.0,0.2293973]
[1753898740810,0.65125166,117890.0,117880.0,0.2293973]
[1753898741504,0.65973356,117890.0,117880.0,0.14492]
[1753898741735,0.08114902,117880.0,117850.0,0.04998]
[1753898741948,0.08114902,117880.0,117860.0,0.2291973]
[1753898741949,0.59521114,117880.0,117860.0,0.2291973]
[1753898742163,0.67968844,117880.0,117860.0,0.2291973]
[1753898742377,0.67968844,117880.0,117860.0,0.2705633]
[1753898742586,0.51406212,117870.0,117860.0,0.2237633]
[1753898743287,0.68168844,117880.0,117860.0,0.2237633]
[1753898743478,0.68917099,117880.0,117860.0,0.2237633]
[1753898743763,0.01844902,117880.0,117860.0,0.2705633]
[1753898743982,0.01744902,117880.0,117860.0,0.2705633]
[1753898744196,0.01744902,117880.0,117870.0,0.0468]
[1753898744377,0.01744902,117880.0,117870.0,0.1364873]
[1753898745539,0.01844902,117880.0,117870.0,0.1364873]
[1753898745755,0.84963407,117880.0,117870.0,0.1444]
[1753898745968,0.84963407,117880.0,117840.0,0.0468]
[1753898745969,0.01744902,117860.0,117840.0,0.0468]
[1753898746198,0.52403114,117860.0,117850.0,0.0844773]
[1753898746441,0.01696949,117850.0,117830.0,0.0468]
[1753898746655,0.51406212,117840.0,117830.0,0.1312773]
[1753898746912,0.59202144,117850.0,117830.0,0.283049]
[1753898747150,0.59202144,117850.0,117830.0,0.2809273]
[1753898747386,0.60050622,117850.0,117830.0,0.2809273]
[1753898747626,0.5310332,117840.0,117830.0,0.0844773]
[1753898747851,0.67012485,117840.0,117830.0,0.14454578]
[1753898748256,1.20578203,117840.0,117830.0,0.00014578]
[1753898748504,1.20478203,117840.0,117830.0,0.00014578]
[1753898748754,6.20478203,117840.0,117830.0,0.00014578]
[1753898749188,6.28925933,117840.0,117830.0,0.00014578]
[1753898749440,6.29125933,117840.0,117830.0,0.00014578]
[1753898749671,6.28925933,117840.0,117830.0,0.00014578]
[1753898750096,6.31368599,117840.0,117830.0,0.00014578]
[1753898751544,6.05100075,117840.0,117830.0,0.00014578]
[1753898751755,0.73211772,117840.0,117830.0,0.00014578]
[1753898751978,1.23769376,117840.0,117830.0,0.00014578]
[1753898752186,6.23320869,117840.0,117830.0,0.00014578]
[1753898752823,6.0465151,117840.0,117830.0,0.00014578]
[1753898753039,1.18807955,117840.0,117830.0,0.00014578]
[1753898753258,1.1880802,117840.0,117830.0,0.00014578]
[1753898753475,0.99838646,117840.0,117830.0,0.00014578]
[1753898753706,0.67101786,117840.0,117830.0,0.00014578]
[1753898753922,1.01535833,117840.0,117830.0,0.00014578]
[1753898754136,0.9814151,117840.0,117830.0,0.00014578]
[1753898754364,0.99838646,117840.0,117830.0,0.04694578]
[1753898754618,1.21797998,117840.0,117830.0,0.00014578]
[1753898754840,6.23250862,117840.0,117830.0,0.00014578]
[1753898755076,6.43750862,117840.0,117830.0,0.00014578]
[1753898755750,6.54979911,117840.0,117830.0,0.00014578]
[1753898756031,6.60571118,117840.0,117830.0,0.00014578]
[1753898756244,6.57789799,117840.0,117830.0,0.00014578]
[1753898756473,6.55289799,117840.0,117830.0,0.00014578]
[1753898756703,6.57289799,117840.0,117830.0,0.00014578]
[1753898756936,6.56889799,117840.0,117830.0,0.00014578]
[1753898757376,6.57489799,117840.0,117830.0,0.00014578]
[1753898757609,0.89697672,117800.0,117790.0,0.06786275]
[1753898757846,0.96447675,117800.0,117790.0,0.11458861]
[1753898758081,0.87151114,117800.0,117790.0,0.11753861]
[1753898758308,0.88848826,117800.0,117790.0,0.11753861]
[1753898758533,1.06675636,117800.0,117790.0,0.11458861]
[1753898758753,0.88848819,117800.0,117790.0,0.06800861]
[1753898758993,0.87151114,117800.0,117790.0,0.11458861]
[1753898759217,0.51406212,117800.0,117790.0,0.11753861]
[1753898759443,0.55941966,117800.0,117790.0,0.04967586]
[1753898759892,0.04535754,117800.0,117790.0,0.04672586]
[1753898760115,0.55941966,117800.0,117790.0,0.00014586]
[1753898760338,5.55941966,117800.0,117790.0,0.00014586]
[1753898760569,0.55941966,117800.0,117790.0,0.00014586]
[1753898761001,0.39271532,117810.0,117790.0,0.00014586]
[1753898761221,0.53151114,117800.0,117790.0,0.04672586]
[1753898761448,0.01744902,117800.0,117790.0,0.04967586]
[1753898762782,0.02593733,117800.0,117790.0,0.04967586]
[1753898763001,0.55697643,117800.0,117790.0,0.04967586]
[1753898763215,0.10192632,117800.0,117790.0,0.04967586]
[1753898763447,0.11890316,117800.0,117790.0,0.04967586]
[1753898763722,0.11041463,117800.0,117790.0,0.04967586]
[1753898763959,0.01744902,117800.0,117790.0,0.04967586]
[1753898764186,5.0,117820.0,117800.0,0.0609]
[1753898764403,0.15184615,117830.0,117810.0,0.04953]
[1753898764670,0.68288093,117830.0,117810.0,0.04658]
[1753898764912,1.09887179,117830.0,117820.0,0.00295]
[1753898765149,1.11584467,117830.0,117820.0,0.00295]
[1753898765394,1.11584467,117830.0,117820.0,0.04953]
[1753898765632,1.13329369,117830.0,117820.0,0.04953]
[1753898765873,0.60178255,117830.0,117820.0,0.04658]
[1753898766103,1.30403033,117830.0,117810.0,0.00295]
[1753898766313,0.53151114,117820.0,117790.0,0.00014586]
[1753898766533,0.10350581,117820.0,117810.0,0.00295]
[1753898766776,0.95008099,117820.0,117810.0,0.00295]
[1753898766986,0.95008099,117820.0,117810.0,0.04953]
[1753898767491,0.94908099,117820.0,117810.0,0.04953]
[1753898767717,0.35844902,117820.0,117810.0,0.07983]
[1753898767963,0.01844902,117820.0,117810.0,0.07983]
[1753898768163,0.01844902,117820.0,117810.0,0.1953073]
[1753898768393,0.001,117820.0,117810.0,0.36507217]
[1753898768607,0.001,117830.0,117820.0,0.23105046]
[1753898768848,0.35876316,117850.0,117820.0,0.39734776]
[1753898769060,0.35744902,117850.0,117840.0,0.0319]
[1753898769274,0.54799966,117860.0,117830.0,0.1980073]
[1753898769542,0.53999585,117850.0,117840.0,0.04953]
[1753898769774,0.92816699,117850.0,117840.0,0.04953]
[1753898770017,0.62525312,117850.0,117840.0,0.04953]
[1753898770249,0.97388347,117850.0,117840.0,0.04953]
[1753898770736,0.96539876,117850.0,117840.0,0.04953]
[1753898770939,0.96639876,117850.0,117840.0,0.04953]
[1753898772186,0.97488361,117850.0,117840.0,0.04953]
[1753898772416,0.96639876,117850.0,117840.0,0.04953]
[1753898772675,0.37823177,117850.0,117840.0,0.04953]
[1753898772910,0.37823177,117850.0,117840.0,0.11203]
[1753898773159,0.89229389,117850.0,117840.0,0.11203]
[1753898773384,0.90077867,117850.0,117840.0,0.11203]
[1753898773603,0.89229389,117850.0,117840.0,0.11203]
[1753898773860,0.00848629,117830.0,117820.0,0.2054]
[1753898774100,0.87999736,117830.0,117820.0,0.0844773]
[1753898774331,0.87999736,117830.0,117820.0,0.1340073]
[1753898774332,0.87151114,117830.0,117820.0,0.1340073]
[1753898774568,0.87151114,117830.0,117820.0,0.1672073]
[1753898774816,0.8884838,117830.0,117820.0,0.1672073]
[1753898775054,0.43959891,117830.0,117820.0,0.1988073]
[1753898775353,0.44808564,117830.0,117820.0,0.1988073]
[1753898775577,0.6178217,117830.0,117820.0,0.1998073]
[1753898775836,1.11491116,117830.0,117820.0,0.001]
[1753898776088,6.25851116,117830.0,117820.0,0.001]
[1753898776334,6.25751116,117830.0,117820.0,0.001]
[1753898776585,5.42266582,117830.0,117820.0,0.05053]
[1753898776810,5.95370053,117830.0,117820.0,0.05053]
[1753898777059,0.35748902,117830.0,117820.0,0.1350073]
[1753898777300,0.35848902,117830.0,117820.0,0.1986073]
[1753898777540,0.01848902,117830.0,117820.0,0.1976073]
[1753898777770,0.53355114,117830.0,117820.0,0.3398473]
[1753898778003,0.53355114,117830.0,117820.0,0.3074473]
[1753898778230,0.61802844,117830.0,117820.0,0.3074473]
[1753898778686,0.61802844,117830.0,117820.0,0.1652073]
[1753898779182,0.62651466,117830.0,117820.0,0.1966073]
[1753898779411,0.63500103,117830.0,117820.0,0.1966073]
[1753898779864,0.62651466,117830.0,117820.0,0.1966073]
[1753898780106,0.6350011,117830.0,117820.0,0.1966073]
[1753898780344,1.14473759,117830.0,117820.0,0.1966073]
[1753898780588,1.14473759,117830.0,117800.0,0.06375]
[1753898780589,0.1867407,117810.0,117800.0,0.06375]
[1753898780865,0.1867407,117810.0,117790.0,0.20575]
[1753898780866,0.00848838,117800.0,117790.0,0.20575]
[1753898781086,0.01697683,117800.0,117790.0,0.20575]
[1753898781307,0.00848831,117800.0,117790.0,0.20575]
[1753898781565,0.00848773,117810.0,117800.0,0.0307]
[1753898781810,0.01697388,117820.0,117810.0,0.0654]
[1753898782027,0.02546104,117820.0,117810.0,0.2919173]
[1753898782249,0.00848687,117820.0,117810.0,0.3414473]
[1753898782472,0.00848701,117820.0,117810.0,0.3414473]
[1753898782942,0.77260475,117820.0,117810.0,0.04658]
[1753898783174,0.18674106,117810.0,117800.0,0.14396]
[1753898783409,1.0582522,117810.0,117800.0,0.002]
[1753898783642,6.0582522,117810.0,117800.0,0.001]
[1753898783861,6.0892522,117810.0,117800.0,0.001]
[1753898784085,6.1734634,117810.0,117800.0,0.001]
[1753898784304,0.37442644,117800.0,117780.0,0.14491]
[1753898784517,1.03889679,117800.0,117790.0,0.04658]
[1753898784739,0.5078574,117800.0,117790.0,0.04953]
[1753898784964,0.51697388,117820.0,117790.0,0.2759273]
[1753898785186,5.0,117820.0,117810.0,0.0614]
[1753898785410,0.36545903,117830.0,117810.0,0.0604]
[1753898785623,0.34,117830.0,117820.0,0.04953]
[1753898785844,0.34,117830.0,117820.0,0.08263]
[1753898786296,0.52254769,117840.0,117820.0,0.08063]
[1753898786518,0.7449112,117840.0,117820.0,0.08063]
[1753898786775,0.75339699,117840.0,117820.0,0.03605]
[1753898786992,0.23084908,117840.0,117820.0,0.03605]
[1753898787244,0.23677568,117840.0,117820.0,0.03605]
[1753898787459,0.2537474,117840.0,117820.0,0.03605]
[1753898787893,0.43195522,117840.0,117820.0,0.03605]
[1753898788119,0.01697266,117830.0,117820.0,0.03605]
[1753898788342,0.01697266,117830.0,117810.0,0.2577973]
[1753898788343,0.00848694,117820.0,117810.0,0.2577973]
[1753898788564,0.37394848,117820.0,117810.0,0.3395073]
[1753898788783,0.34,117820.0,117810.0,0.3395073]
[1753898789000,0.34,117820.0,117810.0,0.2009373]
[1753898789227,0.34,117840.0,117820.0,0.0627]
[1753898789447,0.34592888,117840.0,117830.0,0.2008373]
[1753898790591,0.00592888,117840.0,117830.0,0.2008373]
[1753898790835,0.00592888,117840.0,117830.0,0.1382373]
[1753898791071,5.5,117860.0,117840.0,0.0644]
[1753898791287,0.35398108,117860.0,117850.0,0.0644]
[1753898791507,0.3714301,117860.0,117850.0,0.11816]
[1753898791937,0.44694385,117860.0,117850.0,0.11816]
[1753898792151,0.46439287,117860.0,117850.0,0.11509]
[1753898792364,1.17442746,117860.0,117840.0,0.3121773]
[1753898792581,1.00473468,117860.0,117840.0,0.3121773]
[1753898792801,1.00473829,117860.0,117840.0,0.3425773]
[1753898793015,0.34848478,117850.0,117840.0,0.0844773]
[1753898793230,0.85279054,117850.0,117840.0,0.0844773]
[1753898793412,0.86127554,117850.0,117840.0,0.0844773]
[1753898793633,0.34,117850.0,117840.0,0.0844773]
[1753898793836,0.36232963,117850.0,117840.0,0.1351673]
[1753898794244,0.37929941,117850.0,117840.0,0.1351673]
[1753898794449,0.37977865,117850.0,117840.0,0.05069]
[1753898794652,0.37129394,117850.0,117840.0,0.05069]
[1753898795065,0.37977879,117850.0,117840.0,0.05069]
[1753898795275,0.37129394,117850.0,117840.0,0.05069]
[1753898795486,0.37129394,117850.0,117840.0,0.05169]
[1753898795692,0.37129394,117850.0,117840.0,0.08329]
[1753898796104,0.35384492,117850.0,117840.0,0.2035373]
[1753898796317,0.34593351,117850.0,117840.0,0.2035373]
[1753898796522,0.00593351,117850.0,117840.0,0.38182462]
[1753898796738,0.00593351,117850.0,117840.0,0.3456973]
[1753898796946,0.00593351,117850.0,117840.0,0.2801973]
[1753898797153,0.00593351,117850.0,117840.0,0.53475364]
[1753898797369,0.00018564,117860.0,117850.0,0.0656]
[1753898797581,0.00866977,117860.0,117850.0,0.1351673]
[1753898797786,0.96503804,117860.0,117840.0,0.22852]
[1753898797991,0.95598573,117860.0,117840.0,0.3457973]
[1753898798215,0.44376401,117860.0,117840.0,0.3457973]
[1753898798426,0.34612335,117860.0,117850.0,0.1382373]
[1753898798636,0.34612335,117860.0,117850.0,0.2038373]
[1753898798840,0.0061237,117860.0,117850.0,0.2038373]
[1753898799053,0.00018564,117860.0,117850.0,0.2038373]
[1753898799673,0.00018564,117860.0,117850.0,0.2048373]
[1753898800303,0.00018564,117860.0,117850.0,0.2038373]
[1753898801135,0.00018564,117860.0,117850.0,0.2058373]
[1753898802650,0.00018564,117860.0,117850.0,0.2038373]
[1753898803077,0.00018564,117860.0,117850.0,0.2048373]
[1753898804146,0.00018564,117860.0,117850.0,0.2017673]
[1753898804370,0.00018564,117860.0,117850.0,0.2048373]
[1753898805257,0.01715376,117860.0,117850.0,0.2048373]
[1753898805473,0.10493306,117860.0,117850.0,0.2048373]
[1753898805719,0.10493306,117860.0,117850.0,0.2769673]
[1753898805720,0.45341756,117860.0,117850.0,0.2769673]
[1753898805938,1.11092794,117860.0,117850.0,0.001]
[1753898806369,0.92378571,117860.0,117850.0,0.001]
[1753898806580,0.42796437,117860.0,117850.0,0.001]
[1753898806797,0.43644872,117860.0,117850.0,0.05169]
[1753898807023,0.61462614,117860.0,117850.0,0.05069]
[1753898807235,0.00848471,117850.0,117840.0,0.25686]
[1753898807444,1.0825542,117860.0,117840.0,0.3413373]
[1753898807662,0.00848478,117850.0,117840.0,0.3413373]
[1753898807870,0.09296201,117850.0,117840.0,0.3413373]
[1753898808084,0.0844773,117850.0,117840.0,0.3413373]
[1753898808522,1.26073187,117860.0,117840.0,0.3413373]
[1753898808759,0.19516268,117850.0,117840.0,0.1974673]
[1753898808975,0.69098359,117850.0,117840.0,0.14076]
[1753898809186,0.01697252,117830.0,117820.0,0.08696]
[1753898809403,0.39469279,117830.0,117820.0,0.3121973]
[1753898809654,0.07516644,117830.0,117820.0,0.3436973]
[1753898810328,0.41214181,117850.0,117820.0,0.3104973]
[1753898810550,0.5236638,117850.0,117830.0,0.1462773]
[1753898810774,0.53214909,117850.0,117840.0,0.05069]
[1753898811000,0.03394258,117840.0,117830.0,0.0844773]
[1753898811213,0.40317851,117840.0,117830.0,0.14076]
[1753898811436,0.49661911,117840.0,117830.0,0.19145]
[1753898811650,0.90090764,117850.0,117830.0,0.19452]
[1753898811868,0.89242286,117850.0,117830.0,0.22652]
[1753898812094,0.49820902,117850.0,117840.0,0.05376]
[1753898812306,0.50669373,117850.0,117840.0,0.05376]
[1753898812524,0.44292632,117850.0,117840.0,0.05376]
[1753898812741,0.001,117850.0,117840.0,0.20385882]
[1753898812956,0.001,117850.0,117840.0,0.2017373]
[1753898813440,0.02563819,117860.0,117840.0,0.2017373]
[1753898813673,0.76033098,117860.0,117850.0,0.2252373]
[1753898813867,0.83632393,117860.0,117850.0,0.2252373]
[1753898814304,0.83632393,117860.0,117850.0,0.2759273]
[1753898814305,0.42466294,117860.0,117850.0,0.2759273]
[1753898814530,0.00018564,117860.0,117850.0,0.3431973]
[1753898815746,0.00118564,117860.0,117850.0,0.3431973]
[1753898815974,0.00018564,117860.0,117850.0,0.3431973]
[1753898816176,0.00866963,117860.0,117850.0,0.3431973]
[1753898816415,0.09414693,117860.0,117850.0,0.3431973]
[1753898816838,0.08566294,117860.0,117850.0,0.3431973]
[1753898817278,0.094147,117860.0,117850.0,0.3431973]
[1753898817532,0.08566294,117860.0,117850.0,0.3431973]
[1753898818150,0.48883972,117860.0,117850.0,0.3431973]
[1753898818372,0.50580835,117860.0,117850.0,0.3431973]
[1753898818583,0.00848485,117850.0,117830.0,0.11445]
[1753898818801,0.50941095,117850.0,117840.0,0.14076]
[1753898818982,0.01697108,117840.0,117830.0,0.2721673]
[1753898819230,0.94684325,117840.0,117830.0,0.2721673]
[1753898819443,0.76863653,117840.0,117820.0,0.07863]
[1753898819649,0.82691496,117840.0,117830.0,0.14076]
[1753898819857,0.34,117840.0,117830.0,0.19071]
[1753898820062,0.34,117840.0,117830.0,0.25181]
[1753898821017,0.34848543,117840.0,117830.0,0.25181]
[1753898821232,0.356971,117840.0,117830.0,0.25181]
[1753898821435,0.34,117840.0,117830.0,0.25181]
[1753898821652,0.34,117840.0,117830.0,0.3362873]
[1753898821870,0.42929572,117860.0,117840.0,0.0618]
[1753898822274,0.35697165,117840.0,117830.0,0.1314073]
[1753898822562,0.75166444,117840.0,117820.0,0.18865]
[1753898822818,0.41166545,117830.0,117820.0,0.2731273]
[1753898823027,0.39469279,117830.0,117820.0,0.2731273]
[1753898823446,0.40317901,117830.0,117820.0,0.2731273]
[1753898823659,0.47917009,117830.0,117820.0,0.2731273]
[1753898823881,0.39469279,117830.0,117820.0,0.3100473]
[1753898824110,0.34,117840.0,117820.0,0.3427473]
[1753898824322,0.49816902,117850.0,117830.0,0.1990273]
[1753898824529,0.49816902,117850.0,117840.0,0.04693]
[1753898824748,0.90983145,117850.0,117840.0,0.04693]
[1753898824973,0.016971,117840.0,117820.0,0.18865]
[1753898825263,0.02593445,117840.0,117830.0,0.001]
[1753898825484,0.78608461,117840.0,117830.0,0.001]
[1753898825730,0.78608453,117840.0,117830.0,0.001]
[1753898826133,0.38290581,117840.0,117820.0,0.2721273]
[1753898826382,0.8554323,117840.0,117820.0,0.2761473]
[1753898826601,0.84694665,117840.0,117820.0,0.3089473]
[1753898826810,0.84694665,117840.0,117820.0,0.3079473]
[1753898827029,0.34,117840.0,117830.0,0.04693]
[1753898827250,0.40816014,117860.0,117840.0,0.0649]
[1753898827460,5.0,117850.0,117840.0,0.0649]
[1753898827674,0.34,117850.0,117840.0,0.25557]
[1753898828109,0.34,117850.0,117840.0,0.3400473]
[1753898828319,0.34018564,117860.0,117840.0,0.3400473]
[1753898828553,0.42466294,117860.0,117850.0,0.0625]
[1753898828774,0.42466294,117860.0,117850.0,0.11245]
[1753898829793,0.82783979,117860.0,117850.0,0.08095]
[1753898830004,0.82983979,117860.0,117850.0,0.04995]
[1753898830209,0.82983979,117860.0,117840.0,0.3058473]
[1753898830210,0.85529291,117860.0,117840.0,0.3058473]
[1753898830425,0.40317764,117850.0,117840.0,0.04693]
[1753898830654,0.53517924,117840.0,117820.0,0.03452]
[1753898830876,0.39469279,117830.0,117820.0,0.2721273]
[1753898831340,0.39469279,117830.0,117820.0,0.3038273]
[1753898831571,0.34,117840.0,117820.0,0.3068473]
[1753898831802,0.35744902,117840.0,117830.0,0.11515]
[1753898832006,0.34,117840.0,117830.0,0.1996273]
[1753898832495,0.47917009,117850.0,117830.0,0.1996273]
[1753898832696,0.0844773,117850.0,117840.0,0.14374]
[1753898832973,0.42114728,117850.0,117840.0,0.18765]
[1753898833175,0.00948471,117850.0,117840.0,0.14072]
[1753898833389,0.4041775,117850.0,117840.0,0.18765]
[1753898833608,0.4031775,117850.0,117840.0,0.18765]
[1753898833842,0.93833981,117850.0,117840.0,0.14072]
[1753898834065,0.9298551,117850.0,117840.0,0.14072]
[1753898834287,1.02329657,117850.0,117830.0,0.0844773]
[1753898834502,0.77759911,117840.0,117830.0,0.14068]
[1753898834717,0.95580684,117840.0,117820.0,0.21991]
[1753898834950,0.39469279,117830.0,117820.0,0.2720873]
[1753898835169,0.40317894,117830.0,117820.0,0.2720873]
[1753898835383,0.39469279,117830.0,117820.0,0.2720873]
[1753898836002,0.77778608,117840.0,117820.0,0.2720873]
[1753898836264,0.39469279,117830.0,117820.0,0.2750873]
[1753898836446,0.44879516,117830.0,117820.0,0.2750873]
[1753898837329,0.45728145,117830.0,117820.0,0.2750873]
[1753898837546,0.45728138,117830.0,117820.0,0.2750873]
[1753898837674,0.44879516,117830.0,117820.0,0.2750873]
[1753898837879,0.05410237,117830.0,117820.0,0.3057873]
[1753898838145,0.05410237,117830.0,117820.0,0.3388073]
[1753898838479,0.05410237,117830.0,117820.0,0.3398073]
[1753898838873,0.05410237,117830.0,117820.0,0.3388073]
[1753898839292,0.05410237,117830.0,117820.0,0.3418073]
[1753898842485,0.45041182,117840.0,117820.0,0.3418073]